[Event "Late-Titled-Tuesday-Blitz-March-05-2024"]
[Site "Chess.com"]
[Date "2024.03.05"]
[Round "4"]
[White "NoHeThTo"]
[Black "kinga2008"]
[Result "0-1"]
[WhiteElo "2633"]
[BlackElo "2464"]
[TimeControl "180+1"]
[EndTime "14:41:02 PST"]
[Termination "kinga2008 won by checkmate"]

1. c4 {[%clk 0:03:00.9]} 1... Nf6 {[%clk 0:02:57.1]} 2. g3 {[%clk 0:03:01.4]}
2... e6 {[%clk 0:02:57.9]} 3. Nf3 {[%clk 0:03:01.1]} 3... c5 {[%clk 0:02:58.8]}
4. Bg2 {[%clk 0:03:01.2]} 4... Nc6 {[%clk 0:02:59.7]} 5. O-O {[%clk 0:03:00.6]}
5... Be7 {[%clk 0:03:00.6]} 6. d4 {[%clk 0:03:01.1]} 6... O-O {[%clk 0:03:01.5]}
7. Nc3 {[%clk 0:03:00.9]} 7... cxd4 {[%clk 0:03:01.7]} 8. Nxd4 {[%clk
0:03:01.8]} 8... d5 {[%clk 0:03:00.7]} 9. cxd5 {[%clk 0:03:01.1]} 9... Nxd5
{[%clk 0:03:00.1]} 10. Nxd5 {[%clk 0:02:58.4]} 10... exd5 {[%clk 0:03:00.5]} 11.
Be3 {[%clk 0:02:54.8]} 11... Bf6 {[%clk 0:02:59.6]} 12. Qd2 {[%clk 0:02:54.7]}
12... Bg4 {[%clk 0:02:56.7]} 13. h3 {[%clk 0:02:54.2]} 13... Be6 {[%clk
0:02:54.4]} 14. Rfd1 {[%clk 0:02:53.3]} 14... Qd7 {[%clk 0:02:54.8]} 15. Nb3
{[%clk 0:02:50.9]} 15... Rfd8 {[%clk 0:02:51.1]} 16. Bd4 {[%clk 0:02:45.2]}
16... Nxd4 {[%clk 0:02:45.5]} 17. Nxd4 {[%clk 0:02:45.2]} 17... Rac8 {[%clk
0:02:46.2]} 18. Kh2 {[%clk 0:02:41.2]} 18... Qa4 {[%clk 0:02:44.1]} 19. e3
{[%clk 0:02:36.3]} 19... Bxd4 {[%clk 0:02:41.3]} 20. Qxd4 {[%clk 0:02:36.2]}
20... Qxd4 {[%clk 0:02:40.8]} 21. Rxd4 {[%clk 0:02:37.1]} 21... Rc2 {[%clk
0:02:41.2]} 22. Kg1 {[%clk 0:02:32.6]} 22... Rxb2 {[%clk 0:02:41]} 23. e4 {[%clk
0:02:32.8]} 23... Rb6 {[%clk 0:02:20.5]} 24. exd5 {[%clk 0:02:27.5]} 24... Kf8
{[%clk 0:02:10.1]} 25. Rad1 {[%clk 0:02:23.7]} 25... Rbd6 {[%clk 0:02:04.3]} 26.
Re1 {[%clk 0:02:11.4]} 26... Bf5 {[%clk 0:01:36.9]} 27. g4 {[%clk 0:02:06.7]}
27... Bg6 {[%clk 0:01:35.3]} 28. f4 {[%clk 0:02:06.5]} 28... f6 {[%clk 0:01:35]}
29. Kf2 {[%clk 0:02:02.6]} 29... Bf7 {[%clk 0:01:30.6]} 30. Rc1 {[%clk
0:02:02.1]} 30... Ke7 {[%clk 0:01:27]} 31. Re1+ {[%clk 0:01:59.6]} 31... Kf8
{[%clk 0:01:17.8]} 32. Be4 {[%clk 0:01:57.8]} 32... g6 {[%clk 0:00:57.5]} 33.
Rc1 {[%clk 0:01:48.1]} 33... f5 {[%clk 0:00:49.6]} 34. gxf5 {[%clk 0:01:47.2]}
34... gxf5 {[%clk 0:00:50.5]} 35. Bf3 {[%clk 0:01:39.6]} 35... Ke7 {[%clk
0:00:46.6]} 36. Re1+ {[%clk 0:01:38.1]} 36... Kf6 {[%clk 0:00:45.8]} 37. Re5
{[%clk 0:01:36.3]} 37... Ra6 {[%clk 0:00:40.3]} 38. Re2 {[%clk 0:01:21.4]} 38...
Rdd6 {[%clk 0:00:24.9]} 39. Rc2 {[%clk 0:01:12.8]} 39... Rd7 {[%clk 0:00:18.2]}
40. Rb2 {[%clk 0:00:57.4]} 40... Rad6 {[%clk 0:00:16.5]} 41. a4 {[%clk
0:00:29.2]} 41... h6 {[%clk 0:00:06.5]} 42. Rbd2 {[%clk 0:00:20.4]} 42... Rb6
{[%clk 0:00:05.8]} 43. d6 {[%clk 0:00:20]} 43... Rb3 {[%clk 0:00:04.4]} 44. Bd5
{[%clk 0:00:17.3]} 44... Bxd5 {[%clk 0:00:03.7]} 45. Rxd5 {[%clk 0:00:18.2]}
45... Rb4 {[%clk 0:00:03.9]} 46. Ke3 {[%clk 0:00:17.6]} 46... Re4+ {[%clk
0:00:02.5]} 47. Kf3 {[%clk 0:00:17.7]} 47... Ke6 {[%clk 0:00:03.3]} 48. Rb5
{[%clk 0:00:17.1]} 48... Rxa4 {[%clk 0:00:02.2]} 49. Rdd5 {[%clk 0:00:16.8]}
49... Ra3+ {[%clk 0:00:02.3]} 50. Kf2 {[%clk 0:00:16.9]} 50... Ra2+ {[%clk
0:00:02.6]} 51. Kg3 {[%clk 0:00:16.6]} 51... Ra3+ {[%clk 0:00:02.8]} 52. Kh4
{[%clk 0:00:17.2]} 52... Ra4 {[%clk 0:00:02.1]} 53. Re5+ {[%clk 0:00:17.3]}
53... Kxd6 {[%clk 0:00:02.4]} 54. Rxf5 {[%clk 0:00:17.9]} 54... Kc6 {[%clk
0:00:03]} 55. Rbc5+ {[%clk 0:00:18.2]} 55... Kb6 {[%clk 0:00:02.5]} 56. Rce5
{[%clk 0:00:19.1]} 56... Rdd4 {[%clk 0:00:02.3]} 57. Re6+ {[%clk 0:00:19.2]}
57... Kc7 {[%clk 0:00:02.3]} 58. Ref6 {[%clk 0:00:19.8]} 58... b5 {[%clk
0:00:02]} 59. Kh5 {[%clk 0:00:19.9]} 59... b4 {[%clk 0:00:02.6]} 60. Kxh6 {[%clk
0:00:20.1]} 60... Rd6 {[%clk 0:00:03.1]} 61. Kg7 {[%clk 0:00:19.7]} 61... Rxf6
{[%clk 0:00:03.1]} 62. Rxf6 {[%clk 0:00:20.2]} 62... b3 {[%clk 0:00:03.5]} 63.
Rf7+ {[%clk 0:00:20.7]} 63... Kc6 {[%clk 0:00:02.8]} 64. Rf8 {[%clk 0:00:19.8]}
64... Rb4 {[%clk 0:00:02.9]} 65. Rc8+ {[%clk 0:00:18.7]} 65... Kb7 {[%clk
0:00:03]} 66. Rc1 {[%clk 0:00:16.7]} 66... a5 {[%clk 0:00:03.4]} 67. f5 {[%clk
0:00:16.3]} 67... a4 {[%clk 0:00:03.9]} 68. f6 {[%clk 0:00:16.9]} 68... a3
{[%clk 0:00:03.1]} 69. f7 {[%clk 0:00:16.3]} 69... Rf4 {[%clk 0:00:03]} 70. Rc4
{[%clk 0:00:09.8]} 70... Rxf7+ {[%clk 0:00:01.8]} 71. Kxf7 {[%clk 0:00:10.7]}
71... a2 {[%clk 0:00:02.4]} 72. Rb4+ {[%clk 0:00:11.6]} 72... Kc6 {[%clk
0:00:03]} 73. Rxb3 {[%clk 0:00:12]} 73... a1=Q {[%clk 0:00:03.6]} 74. Rg3 {[%clk
0:00:09.7]} 74... Qf1+ {[%clk 0:00:04.1]} 75. Kg7 {[%clk 0:00:07.7]} 75... Kd6
{[%clk 0:00:04.6]} 76. Rg6+ {[%clk 0:00:06.9]} 76... Ke7 {[%clk 0:00:04.3]} 77.
h4 {[%clk 0:00:07.5]} 77... Qf8+ {[%clk 0:00:04.4]} 78. Kh7 {[%clk 0:00:07.5]}
78... Kf7 {[%clk 0:00:03.7]} 79. h5 {[%clk 0:00:06.6]} 79... Qb4 {[%clk
0:00:03.3]} 80. h6 {[%clk 0:00:06.2]} 80... Qe4 {[%clk 0:00:02.3]} 81. Kh8
{[%clk 0:00:06.7]} 81... Kxg6 {[%clk 0:00:02.8]} 82. Kg8 {[%clk 0:00:06.7]}
82... Qe8# {[%clk 0:00:03.7]} 0-1

[Event "Late-Titled-Tuesday-Blitz-March-05-2024"]
[Site "Chess.com"]
[Date "2024.03.05"]
[Round "4"]
[White "Too_Stupid_To_Play"]
[Black "stregachess"]
[Result "0-1"]
[WhiteElo "2247"]
[BlackElo "2026"]
[TimeControl "180+1"]
[EndTime "14:41:02 PST"]
[Termination "stregachess won by checkmate"]

1. Nf3 {[%clk 0:02:52.4]} 1... d5 {[%clk 0:02:59]} 2. c4 {[%clk 0:02:52]} 2...
e6 {[%clk 0:02:53.9]} 3. g3 {[%clk 0:02:51.7]} 3... Nf6 {[%clk 0:02:53.9]} 4.
Bg2 {[%clk 0:02:52.6]} 4... Be7 {[%clk 0:02:54.1]} 5. O-O {[%clk 0:02:53.3]}
5... O-O {[%clk 0:02:54.3]} 6. b3 {[%clk 0:02:54.2]} 6... c6 {[%clk 0:02:54.2]}
7. Bb2 {[%clk 0:02:54.8]} 7... b6 {[%clk 0:02:53.6]} 8. d3 {[%clk 0:02:55.3]}
8... Bb7 {[%clk 0:02:54]} 9. Nbd2 {[%clk 0:02:56.2]} 9... Nbd7 {[%clk
0:02:54.1]} 10. Re1 {[%clk 0:02:56.9]} 10... Rc8 {[%clk 0:02:53]} 11. e4 {[%clk
0:02:56.6]} 11... dxe4 {[%clk 0:02:48.5]} 12. dxe4 {[%clk 0:02:57.5]} 12... Nc5
{[%clk 0:02:45.8]} 13. Ne5 {[%clk 0:02:56.8]} 13... Nd3 {[%clk 0:02:44.2]} 14.
Nxd3 {[%clk 0:02:56.6]} 14... Qxd3 {[%clk 0:02:44.2]} 15. Nf3 {[%clk 0:02:37.1]}
15... Rfd8 {[%clk 0:02:39.1]} 16. Ne5 {[%clk 0:02:37.5]} 16... Qxd1 {[%clk
0:02:28.5]} 17. Raxd1 {[%clk 0:02:38.4]} 17... Bb4 {[%clk 0:02:27.9]} 18. Rf1
{[%clk 0:02:31.3]} 18... Kf8 {[%clk 0:02:25.1]} 19. Nd3 {[%clk 0:02:23.1]} 19...
Be7 {[%clk 0:02:24]} 20. e5 {[%clk 0:02:15.9]} 20... Nd7 {[%clk 0:02:23.4]} 21.
f4 {[%clk 0:02:09.5]} 21... Nc5 {[%clk 0:02:22]} 22. Nb4 {[%clk 0:01:54.7]}
22... a5 {[%clk 0:02:14.4]} 23. Rxd8+ {[%clk 0:01:53.1]} 23... Bxd8 {[%clk
0:02:14.1]} 24. Nc2 {[%clk 0:01:49.7]} 24... Be7 {[%clk 0:02:13.9]} 25. Rd1
{[%clk 0:01:48.3]} 25... Rd8 {[%clk 0:02:10.1]} 26. Rxd8+ {[%clk 0:01:42.3]}
26... Bxd8 {[%clk 0:02:09.8]} 27. Nd4 {[%clk 0:01:43.2]} 27... Nd3 {[%clk
0:01:48.9]} 28. Ba3+ {[%clk 0:01:43.3]} 28... Kg8 {[%clk 0:01:43.4]} 29. Nxc6
{[%clk 0:01:38.4]} 29... Bxc6 {[%clk 0:01:37.5]} 30. Bxc6 {[%clk 0:01:39.3]}
30... f6 {[%clk 0:01:34.1]} 31. Bd6 {[%clk 0:00:37.6]} 31... Nc1 {[%clk
0:01:20.5]} 32. Kf2 {[%clk 0:00:19.9]} 32... Nxa2 {[%clk 0:01:20.1]} 33. Ke3
{[%clk 0:00:20.3]} 33... Kf7 {[%clk 0:01:10.7]} 34. Kd4 {[%clk 0:00:17.2]} 34...
Nb4 {[%clk 0:01:02.4]} 35. Be4 {[%clk 0:00:10.8]} 35... g6 {[%clk 0:00:54.2]}
36. c5 {[%clk 0:00:04.9]} 36... bxc5+ {[%clk 0:00:49.2]} 37. Kxc5 {[%clk
0:00:05.3]} 37... fxe5 {[%clk 0:00:41.5]} 38. fxe5 {[%clk 0:00:04.3]} 38... Na2
{[%clk 0:00:36.6]} 39. Kc4 {[%clk 0:00:02.2]} 39... Nc1 {[%clk 0:00:34.2]} 40.
Bc2 {[%clk 0:00:01.2]} 40... Ne2 {[%clk 0:00:33]} 41. Kb5 {[%clk 0:00:02.1]}
41... Nd4+ {[%clk 0:00:30.5]} 42. Ka6 {[%clk 0:00:01.3]} 42... Nxc2 {[%clk
0:00:30]} 43. Bc5 {[%clk 0:00:01.4]} 43... Ke8 {[%clk 0:00:20.3]} 44. Kb5 {[%clk
0:00:01.5]} 44... Kd7 {[%clk 0:00:18.9]} 45. Kc4 {[%clk 0:00:02]} 45... Ne1
{[%clk 0:00:17.8]} 46. Kd4 {[%clk 0:00:01.8]} 46... Nf3+ {[%clk 0:00:17.8]} 47.
Ke4 {[%clk 0:00:02.7]} 47... Nxh2 {[%clk 0:00:17.9]} 48. Ke3 {[%clk 0:00:02.9]}
48... Ng4+ {[%clk 0:00:16.8]} 49. Kf4 {[%clk 0:00:03.8]} 49... h5 {[%clk
0:00:15.6]} 50. Bf8 {[%clk 0:00:03.5]} 50... Kc6 {[%clk 0:00:15.1]} 51. Ba3
{[%clk 0:00:03.3]} 51... Kb5 {[%clk 0:00:15.2]} 52. Bf8 {[%clk 0:00:02.4]} 52...
a4 {[%clk 0:00:15.2]} 53. bxa4+ {[%clk 0:00:02.3]} 53... Kxa4 {[%clk 0:00:15.5]}
54. Bc5 {[%clk 0:00:02.9]} 54... Kb5 {[%clk 0:00:15.8]} 55. Bg1 {[%clk 0:00:03]}
55... Kc4 {[%clk 0:00:16]} 56. Ke4 {[%clk 0:00:03.5]} 56... Bc7 {[%clk
0:00:15.5]} 57. Ba7 {[%clk 0:00:04.2]} 57... Bxe5 {[%clk 0:00:15.1]} 58. Bg1
{[%clk 0:00:04.6]} 58... Bf6 {[%clk 0:00:15.1]} 59. Ba7 {[%clk 0:00:05.5]} 59...
Kb5 {[%clk 0:00:15.1]} 60. Bg1 {[%clk 0:00:04.7]} 60... Kc6 {[%clk 0:00:15.5]}
61. Ba7 {[%clk 0:00:02.5]} 61... Kd7 {[%clk 0:00:15.6]} 62. Bg1 {[%clk
0:00:02.8]} 62... Be5 {[%clk 0:00:14.2]} 63. Ba7 {[%clk 0:00:03.7]} 63... Bxg3
{[%clk 0:00:14.2]} 64. Bg1 {[%clk 0:00:04.5]} 64... Bc7 {[%clk 0:00:14.1]} 65.
Ba7 {[%clk 0:00:05.4]} 65... Ke7 {[%clk 0:00:14.5]} 66. Bg1 {[%clk 0:00:05.1]}
66... Kf6 {[%clk 0:00:12.8]} 67. Kf3 {[%clk 0:00:06]} 67... Kf5 {[%clk
0:00:12.3]} 68. Kg2 {[%clk 0:00:06]} 68... e5 {[%clk 0:00:12.6]} 69. Kh1 {[%clk
0:00:06.9]} 69... e4 {[%clk 0:00:12.5]} 70. Bb6 {[%clk 0:00:07.8]} 70... g5
{[%clk 0:00:11.4]} 71. Bxc7 {[%clk 0:00:07.7]} 71... e3 {[%clk 0:00:09.5]} 72.
Kg2 {[%clk 0:00:06.2]} 72... Ne5 {[%clk 0:00:07.4]} 73. Bb6 {[%clk 0:00:04.5]}
73... Nc4 {[%clk 0:00:07.4]} 74. Bc5 {[%clk 0:00:03.8]} 74... g4 {[%clk
0:00:07.3]} 75. Kf1 {[%clk 0:00:03.8]} 75... Ke4 {[%clk 0:00:07.4]} 76. Ke2
{[%clk 0:00:04]} 76... h4 {[%clk 0:00:06.4]} 77. Be7 {[%clk 0:00:04.1]} 77... h3
{[%clk 0:00:06.5]} 78. Bd8 {[%clk 0:00:04.2]} 78... Ne5 {[%clk 0:00:05.8]} 79.
Bh4 {[%clk 0:00:03.6]} 79... Ng6 {[%clk 0:00:05.5]} 80. Bg3 {[%clk 0:00:04.1]}
80... Nf4+ {[%clk 0:00:05.1]} 81. Ke1 {[%clk 0:00:04.1]} 81... Kf3 {[%clk
0:00:05.1]} 82. Bh2 {[%clk 0:00:03.8]} 82... Nd3+ {[%clk 0:00:04.5]} 83. Kf1
{[%clk 0:00:03.7]} 83... e2+ {[%clk 0:00:04.7]} 84. Kg1 {[%clk 0:00:04.2]} 84...
e1=Q# {[%clk 0:00:04.9]} 0-1

[Event "Late-Titled-Tuesday-Blitz-March-05-2024"]
[Site "Chess.com"]
[Date "2024.03.05"]
[Round "4"]
[White "TigrVShlyape"]
[Black "Statham_01"]
[Result "0-1"]
[WhiteElo "2853"]
[BlackElo "2595"]
[TimeControl "180+1"]
[EndTime "14:41:12 PST"]
[Termination "Statham_01 won by resignation"]

1. e4 {[%clk 0:03:00.9]} 1... e5 {[%clk 0:02:57.5]} 2. Nf3 {[%clk 0:02:46.2]}
2... Nf6 {[%clk 0:02:55.7]} 3. Nxe5 {[%clk 0:02:42.9]} 3... Nc6 {[%clk
0:02:55.2]} 4. Nxc6 {[%clk 0:02:38.8]} 4... dxc6 {[%clk 0:02:55.6]} 5. d3 {[%clk
0:02:34.9]} 5... Bc5 {[%clk 0:02:55.4]} 6. Be2 {[%clk 0:02:25.5]} 6... h5 {[%clk
0:02:55.1]} 7. h3 {[%clk 0:02:21.6]} 7... Qd4 {[%clk 0:02:54.8]} 8. Be3 {[%clk
0:01:35.8]} 8... Qxb2 {[%clk 0:02:50.3]} 9. Nd2 {[%clk 0:01:34.8]} 9... Bxe3
{[%clk 0:02:50]} 10. fxe3 {[%clk 0:01:34.7]} 10... Qe5 {[%clk 0:02:31.9]} 11.
Bf3 {[%clk 0:01:23.9]} 11... Qg3+ {[%clk 0:02:16.7]} 12. Ke2 {[%clk 0:01:23.2]}
12... Be6 {[%clk 0:02:12.7]} 13. Qe1 {[%clk 0:01:18.9]} 13... Qe5 {[%clk
0:01:50.1]} 14. d4 {[%clk 0:01:17.4]} 14... Qg5 {[%clk 0:01:41.3]} 15. h4 {[%clk
0:01:16.2]} 15... Qh6 {[%clk 0:01:27.6]} 16. Qg3 {[%clk 0:01:13.5]} 16... O-O-O
{[%clk 0:01:24.5]} 17. Qg5 {[%clk 0:01:13.3]} 17... Qh7 {[%clk 0:01:15.6]} 18.
Rab1 {[%clk 0:01:11.2]} 18... Bg4 {[%clk 0:01:03.6]} 19. Bxg4+ {[%clk
0:00:51.7]} 19... hxg4 {[%clk 0:01:04.1]} 20. e5 {[%clk 0:00:49.2]} 20... Nd5
{[%clk 0:01:01.7]} 21. Qxg4+ {[%clk 0:00:46.7]} 21... Kb8 {[%clk 0:00:57.9]} 22.
Ne4 {[%clk 0:00:35.9]} 22... f5 {[%clk 0:00:49.4]} 23. exf6 {[%clk 0:00:32]}
23... Rhe8 {[%clk 0:00:41.8]} 24. Kf3 {[%clk 0:00:22.3]} 24... gxf6 {[%clk
0:00:23.1]} 25. Rxb7+ {[%clk 0:00:13]} 25... Kxb7 {[%clk 0:00:19.3]} 26. Nc5+
{[%clk 0:00:13.9]} 26... Ka8 {[%clk 0:00:17.8]} 27. e4 {[%clk 0:00:14.8]} 27...
f5 {[%clk 0:00:14.9]} 28. exf5 {[%clk 0:00:13.3]} 28... Rf8 {[%clk 0:00:10]} 29.
Ke2 {[%clk 0:00:07.8]} 29... Rde8+ {[%clk 0:00:08.5]} 30. Kd2 {[%clk 0:00:05.3]}
30... Qh6+ {[%clk 0:00:08.7]} 31. Qg5 {[%clk 0:00:05.3]} 31... Qd6 {[%clk
0:00:07.1]} 32. Rf1 {[%clk 0:00:04.3]} 32... Nb6 {[%clk 0:00:05.8]} 33. c3
{[%clk 0:00:04.2]} 33... Qd5 {[%clk 0:00:03.6]} 34. Qf4 {[%clk 0:00:02.4]} 34...
Nc4+ {[%clk 0:00:03.4]} 35. Kd3 {[%clk 0:00:01.4]} 35... Nb2+ {[%clk 0:00:02.8]}
36. Kc2 {[%clk 0:00:01.7]} 36... Nc4 {[%clk 0:00:03.3]} 37. Kd3 {[%clk 0:00:02]}
37... Nd6 {[%clk 0:00:03.1]} 38. Qf3 {[%clk 0:00:01.8]} 38... Qc4+ {[%clk
0:00:03.5]} 39. Kd2 {[%clk 0:00:01.9]} 39... Qxa2+ {[%clk 0:00:03.4]} 40. Kd3
{[%clk 0:00:02.2]} 40... Qc4+ {[%clk 0:00:03.7]} 41. Kd2 {[%clk 0:00:02.8]}
41... Qd5 {[%clk 0:00:03.9]} 42. Qxd5 {[%clk 0:00:02.7]} 42... cxd5 {[%clk
0:00:04.8]} 43. g4 {[%clk 0:00:03]} 43... Ne4+ {[%clk 0:00:04.2]} 44. Kd3 {[%clk
0:00:03.3]} 44... Nxc5+ {[%clk 0:00:03.8]} 45. dxc5 {[%clk 0:00:03.6]} 45... Re4
{[%clk 0:00:04.5]} 46. g5 {[%clk 0:00:03.4]} 46... Rxh4 {[%clk 0:00:04.6]} 47.
f6 {[%clk 0:00:03.4]} 47... Rg4 {[%clk 0:00:04.5]} 48. Rf5 {[%clk 0:00:03.5]}
48... Kb7 {[%clk 0:00:04.1]} 49. Rxd5 {[%clk 0:00:03.1]} 49... Kc6 {[%clk
0:00:04.8]} 50. Re5 {[%clk 0:00:03.1]} 50... a5 {[%clk 0:00:04.9]} 51. Ke3
{[%clk 0:00:02.9]} 51... a4 {[%clk 0:00:05]} 52. Kf3 {[%clk 0:00:03.4]} 52...
Rg1 {[%clk 0:00:05.1]} 53. Kf2 {[%clk 0:00:03.8]} 53... Rc1 {[%clk 0:00:04.3]}
54. Rf5 {[%clk 0:00:03.5]} 54... a3 {[%clk 0:00:03.3]} 55. g6 {[%clk 0:00:03.6]}
55... a2 {[%clk 0:00:04]} 56. g7 {[%clk 0:00:04.2]} 56... Rd8 {[%clk 0:00:04.3]}
57. f7 {[%clk 0:00:04.2]} 57... a1=Q {[%clk 0:00:04.6]} 58. Rf6+ {[%clk
0:00:04.6]} 58... Kb5 {[%clk 0:00:04.6]} 59. f8=Q {[%clk 0:00:04.7]} 59... Qb2+
{[%clk 0:00:05]} 60. Kg3 {[%clk 0:00:05]} 60... Rxc3+ {[%clk 0:00:05.3]} 61. Rf3
{[%clk 0:00:05.2]} 61... Rxf8 {[%clk 0:00:04.7]} 62. gxf8=Q {[%clk 0:00:05.2]}
62... Rxf3+ {[%clk 0:00:05]} 63. Qxf3 {[%clk 0:00:05.4]} 63... Kxc5 {[%clk
0:00:04.4]} 64. Qf5+ {[%clk 0:00:05.8]} 64... Kb6 {[%clk 0:00:03.7]} 65. Qe6+
{[%clk 0:00:05.6]} 65... c6 {[%clk 0:00:03.6]} 66. Qe2 {[%clk 0:00:05.9]} 66...
Qc3+ {[%clk 0:00:03.7]} 67. Kg2 {[%clk 0:00:05.6]} 67... c5 {[%clk 0:00:03.8]}
68. Qe6+ {[%clk 0:00:05.6]} 68... Kb5 {[%clk 0:00:04.1]} 69. Qd7+ {[%clk
0:00:05.8]} 69... Kb4 {[%clk 0:00:04.7]} 70. Qb7+ {[%clk 0:00:06.1]} 70... Kc4
{[%clk 0:00:05.2]} 71. Qf7+ {[%clk 0:00:06.2]} 71... Kd3 {[%clk 0:00:05.4]} 72.
Qf5+ {[%clk 0:00:06.1]} 72... Kd2 {[%clk 0:00:05.5]} 73. Qf2+ {[%clk 0:00:06.1]}
73... Kc1 {[%clk 0:00:05.8]} 74. Qf1+ {[%clk 0:00:06.5]} 74... Kb2 {[%clk
0:00:06]} 75. Qb5+ {[%clk 0:00:06.4]} 75... Ka2 {[%clk 0:00:04.1]} 76. Qa6+
{[%clk 0:00:06.4]} 76... Qa3 {[%clk 0:00:04.1]} 77. Qc4+ {[%clk 0:00:06.6]}
77... Ka1 {[%clk 0:00:03.9]} 78. Kf2 {[%clk 0:00:05.4]} 78... Qa2+ {[%clk
0:00:03.3]} 79. Qxa2+ {[%clk 0:00:04.9]} 79... Kxa2 {[%clk 0:00:04.2]} 80. Ke3
{[%clk 0:00:04.8]} 80... Kb3 {[%clk 0:00:03.2]} 81. Kd3 {[%clk 0:00:05.3]} 81...
c4+ {[%clk 0:00:03.1]} 82. Kd4 {[%clk 0:00:05.7]} 82... c3 {[%clk 0:00:03.4]}
0-1